fUSD/lending_fUSD_20251026
["ID","MTS","AMOUNT","RATE_DAILY","PERIOD"]
[392459723,1761502306394,-500.0,0.00273973,120]
[392459724,1761502306402,-500.0,0.00273973,120]
[392459725,1761502306411,-546.43290314,0.00273973,120]
[392459726,1761502306421,-500.0,0.00274747,120]
[392459727,1761502306432,-944.89284431,0.00277778,120]
[392459728,1761502306443,-800.0,0.00279452,120]
[392459729,1761502306454,-944.89284431,0.00283333,120]
[392459730,1761502306467,-800.0,0.00284932,120]
[392459731,1761502306476,-150.0,0.00288512,120]
[392459732,1761502306485,-944.89284431,0.00288889,120]
[392459733,1761502306495,-1748.0,0.0029,120]
[392459734,1761502306506,-500.0,0.0029,120]
[392459735,1761502306515,-800.0,0.00290411,120]
[392459736,1761502306525,-150.0,0.00293469,120]
[392459737,1761502306534,-944.89284431,0.00294444,120]
[392459738,1761502306544,-137346.23246,0.00294618,90]
[392459739,1761502306554,-800.0,0.0029589,120]
[392459740,1761502306564,-86186.9420391,0.00299957,90]
[392459741,1761502306573,-1402.0,0.00299999,120]
[392459742,1761502306582,-1000.0,0.00299999,120]
[392459743,1761502306591,-2000.0,0.003,120]
[392459744,1761502306600,-150.0,0.003,120]
[392459745,1761502306609,-1000.0,0.003,2]
[392459746,1761502306618,-2000.0,0.003,120]
[392459747,1761502306628,-944.89284431,0.003,120]
[392459748,1761502306636,-4659.80431095,0.003,120]
[392459749,1761502306645,-5000.54321234,0.003,120]
[392459750,1761502306654,-2000.0,0.003,120]
[392459751,1761502306663,-800.0,0.0030137,120]
[392459752,1761502306672,-150.0,0.00304415,120]
[392459753,1761502306681,-944.89284431,0.00305556,120]
[392459754,1761502306690,-800.0,0.00306849,120]
[392459755,1761502306699,-944.89284431,0.00311111,120]
[392459756,1761502306708,-800.0,0.00312329,120]
[392459757,1761502306718,-162.00172638,0.00314355,120]
[392459758,1761502306727,-944.89284431,0.00316667,120]
[392459759,1761502306736,-800.0,0.00317808,120]
[392459760,1761502306745,-20000.0,0.0032,120]
[392459761,1761502306755,-944.89284431,0.00322222,120]
[392459762,1761502306764,-162.0,0.00323,120]
[392459763,1761502306774,-800.0,0.00323288,120]
[392459764,1761502306782,-160.48271239,0.00325,30]
[392459765,1761502306791,-2000.0,0.003256,68]
[392459766,1761502306801,-944.89284431,0.00327778,120]
[392459767,1761502306810,-800.0,0.00328767,120]
[392459768,1761502306819,-500000.0,0.003333,120]
[392459769,1761502306829,-944.89284431,0.00333333,120]
[392459770,1761502306839,-800.0,0.00334247,120]
[392459771,1761502306850,-1500.0,0.003349,120]
[392459772,1761502306859,-944.89284431,0.00338889,120]
[392459773,1761502306868,-800.0,0.00339726,120]
[392459774,1761502306878,-10815.84183257,0.003432,30]
[392459775,1761502306887,-944.89284431,0.00344444,120]
[392459776,1761502306896,-800.0,0.00345205,120]
[392459777,1761502306906,-944.89284431,0.0035,120]
[392459778,1761502306915,-10000.0,0.0035,120]
[392459779,1761502306924,-10000.0,0.0035,120]
[392459780,1761502306934,-2000.0,0.0035,120]
[392459781,1761502306943,-1002.48744819,0.0035,120]
[392459782,1761502306955,-5000.54321234,0.0035,120]
[392459783,1761502306964,-800.0,0.00350685,120]
[392459784,1761502306974,-3011.17,0.00351,120]
[392459785,1761502306983,-944.89284431,0.00355556,120]
[392459786,1761502306992,-800.0,0.00356164,120]
[392459787,1761502307001,-944.89284431,0.00361111,120]
[392459788,1761502307009,-800.0,0.00361644,120]
[392459789,1761502307018,-2000.0,0.003652,81]
[392459790,1761502307027,-944.89284431,0.00366667,120]
[392459791,1761502307036,-800.0,0.00367123,120]
[392459792,1761502307045,-944.89284431,0.00372222,120]
[392459793,1761502307053,-800.0,0.00372603,120]
[392459794,1761502307062,-944.89284431,0.00377778,120]
[392459795,1761502307071,-800.0,0.00378082,120]
[392459796,1761502307080,-9603.68,0.003788,120]
[392459797,1761502307088,-944.89284431,0.00383333,120]
[392459798,1761502307098,-800.0,0.00383562,120]
[392459799,1761502307107,-150.0,0.0038477,120]
[392459800,1761502307116,-944.89284431,0.00388889,120]
[392459801,1761502307125,-800.0,0.00389041,120]
[392459802,1761502307134,-500.0,0.0039,120]
[392459803,1761502307144,-12085.48198344,0.0039,30]
[392459804,1761502307156,-3600.00000003,0.0039,120]
[392459805,1761502307166,-1187.57446958,0.00390048,120]
[392459806,1761502307175,-944.89284431,0.00394444,120]
[392459807,1761502307184,-800.0,0.00394521,120]
[392459808,1761502307193,-137346.23246,0.00395761,120]
[392459809,1761502307203,-6118.88542484,0.00395861,120]
[392459810,1761502307212,-86186.9420391,0.00398543,120]
[392459811,1761502307222,-3000.0,0.00399,120]
[392459812,1761502307231,-203.47,0.0039907,120]
[392459813,1761502307241,-1000.0,0.00399999,120]
[392459814,1761502307249,-2000.0,0.004,120]
[392459815,1761502307259,-1000.0,0.004,2]
[392459816,1761502307267,-2000.0,0.004,120]
[392459817,1761502307276,-944.89284431,0.004,120]
[392459818,1761502307285,-5000.54321234,0.004,120]
[392459819,1761502307294,-1000.0,0.004,120]
[392459820,1761502307303,-800.0,0.004,120]
[392459821,1761502307311,-150.0,0.00404824,120]
[392459822,1761502307320,-800.0,0.00405479,120]
[392459823,1761502307329,-944.89284431,0.00405556,120]
[392459824,1761502307338,-600.0,0.0041,120]
[392459825,1761502307348,-800.0,0.00410959,120]
[392459826,1761502307357,-944.89284431,0.00411111,120]
[392459827,1761502307366,-800.0,0.00416438,120]
[392459828,1761502307376,-944.89284431,0.00416667,120]
[392459829,1761502307385,-10000.0,0.0042,120]
[392459830,1761502307394,-800.0,0.00421918,120]
[392459831,1761502307405,-944.89284431,0.00422222,120]
[392459832,1761502307415,-150.0,0.00423823,120]
[392459833,1761502307425,-2000.0,0.004263,81]
[392459834,1761502307435,-800.0,0.00427397,120]
[392459835,1761502307444,-944.89284431,0.00427778,120]
[392459836,1761502307454,-800.0,0.00432877,120]
[392459837,1761502307466,-944.89284431,0.00433333,120]
[392459838,1761502307477,-800.0,0.00438356,120]
[392459839,1761502307487,-944.89284431,0.00438889,120]
[392459840,1761502307497,-3000.0,0.0044,60]
[392459841,1761502307506,-5000.0,0.0044,60]
[392459842,1761502307515,-800.0,0.00443836,120]
[392459843,1761502307524,-500000.0,0.004444,120]
[392459844,1761502307533,-944.89284431,0.00444444,120]
[392459845,1761502307543,-800.0,0.00449315,120]
[392459846,1761502307556,-944.89284431,0.0045,120]
[392459847,1761502307565,-2000.0,0.0045,120]
[392459848,1761502307576,-399000.0,0.0045,120]
[392459849,1761502307585,-54883.4696877,0.0045,120]
[392459850,1761502307597,-5000.54321234,0.0045,120]
[392459851,1761502307607,-2000.0,0.004523,72]
[392459852,1761502307616,-163.0,0.004538,120]
[392459853,1761502307625,-206.77776486,0.00453871,120]
[392459854,1761502307635,-800.0,0.00454795,120]
[392459855,1761502307645,-1500.0,0.004549,120]
[392459856,1761502307654,-944.89284431,0.00455556,120]
[392459857,1761502307664,-152.0,0.0046021,3]
[392459858,1761502307673,-800.0,0.00460274,120]
[392459859,1761502307683,-944.89284431,0.00461111,120]
[392459860,1761502307693,-800.0,0.00465753,120]
[392459861,1761502307702,-944.89284431,0.00466667,120]
[392459862,1761502307711,-800.0,0.00471233,120]
[392459863,1761502307720,-944.89284431,0.00472222,120]
[392459864,1761502307729,-700.00000001,0.00474747,120]
[392459865,1761502307738,-800.0,0.00476712,120]
[392459866,1761502307746,-944.89284431,0.00477778,120]
[392459867,1761502307756,-13625.439999,0.004788,120]
[392459868,1761502307765,-111626.61937199,0.0048,120]
[392459869,1761502307774,-800.0,0.00482192,120]
[392459870,1761502307783,-944.89284431,0.00483333,120]
[392459871,1761502307793,-2000.0,0.004875,63]
[392459872,1761502307802,-800.0,0.00487671,120]
[392459873,1761502307811,-944.89284431,0.00488889,120]
[392459874,1761502307820,-3000.0,0.0049,60]
[392459875,1761502307830,-5000.0,0.0049,60]
[392459876,1761502307839,-802.8774843,0.0049,120]
[392459877,1761502307851,-425837.12097164,0.0049,120]
[392459878,1761502307860,-800.0,0.00493151,120]
[392459879,1761502307869,-944.89284431,0.00494444,120]
[392459880,1761502307878,-137346.23246,0.00494737,120]
[392459881,1761502307887,-86186.9420391,0.00498328,120]
[392459882,1761502307896,-800.0,0.0049863,120]
[392459883,1761502307906,-1000.0,0.00499999,120]
[392459884,1761502307915,-2000.0,0.005,120]
[392459885,1761502307924,-1000.0,0.005,2]
[392459886,1761502307934,-2166.0140995,0.005,120]
[392459887,1761502307943,-3230.79574446,0.005,120]
[392459888,1761502307952,-944.89284431,0.005,120]
[392459889,1761502307961,-343.0,0.005,120]
[392459890,1761502307970,-250.0,0.005,120]
[392459891,1761502307980,-205.95089584,0.005,120]
[392459892,1761502307989,-25000.0,0.005,90]
[392459893,1761502307998,-1927.26457313,0.005,120]
[392459894,1761502308007,-803.68385918,0.005,120]
[392459895,1761502308016,-1000.0,0.005,120]
[392459896,1761502308025,-8393.20163146,0.005,30]
[392459897,1761502308034,-5064.3,0.005,120]
[392459898,1761502308044,-800.0,0.0050411,120]
[392459899,1761502308053,-152.0,0.00504684,4]
[392459900,1761502308062,-944.89284431,0.00505556,120]
[392459901,1761502308071,-800.0,0.00509589,120]
[392459902,1761502308080,-4000.0,0.0051,120]
[392459903,1761502308089,-944.89284431,0.00511111,120]
[392459904,1761502308098,-784.61965327,0.00515068,120]
[392459905,1761502308108,-944.89284431,0.00516667,120]
[392459906,1761502308117,-10000.0,0.0052,120]
[392459907,1761502308126,-2000.0,0.0052,120]
[392459908,1761502308135,-10000.0,0.0052,120]
[392459909,1761502308144,-944.89284431,0.00522222,120]
[392459910,1761502308154,-2000.0,0.005246,90]
[392459911,1761502308163,-944.89284431,0.00527778,120]
[392459912,1761502308172,-417.87883528,0.0053,120]
[392459913,1761502308182,-10000.0,0.0053,120]
[392459914,1761502308191,-944.89284431,0.00533333,120]
[392459915,1761502308201,-964.78,0.00534,120]
[392459916,1761502308209,-944.89284431,0.00538889,120]
[392459917,1761502308219,-2000.0,0.0054,120]
[392459918,1761502308228,-2994.22412144,0.0054,60]
[392459919,1761502308237,-5000.0,0.0054,60]
[392459920,1761502308246,-10000.0,0.0054,120]
[392459921,1761502308255,-150.00409928,0.00542465,120]
[392459922,1761502308264,-150.0,0.00542465,120]
[392459923,1761502308274,-150.0,0.00542465,120]
[392459924,1761502308283,-150.0,0.00542465,120]
[392459925,1761502308292,-150.0,0.00542465,120]
[392459926,1761502308301,-150.0,0.00542465,120]
[392459927,1761502308310,-150.0,0.00542465,120]
[392459928,1761502308319,-150.0,0.00542465,120]
[392459929,1761502308328,-150.0,0.00542465,120]
[392459930,1761502308337,-150.0,0.00542465,120]
[392459931,1761502308346,-2000.0,0.005438,90]
[392459932,1761502308355,-944.89284431,0.00544444,120]
[392459933,1761502308365,-1000.0,0.00545205,120]
[392459934,1761502308375,-1000.0,0.00545205,120]
[392459935,1761502308384,-1000.0,0.00545205,120]
[392459936,1761502308393,-1000.0,0.00545205,120]
[392459937,1761502308402,-1000.0,0.00545205,120]
[392459938,1761502308411,-1000.0,0.00545205,120]
[392459939,1761502308421,-1000.0,0.00545205,120]
[392459940,1761502308430,-1000.0,0.00545205,120]
[392459941,1761502308439,-1000.0,0.00545205,120]
[392459942,1761502308448,-1000.0,0.00545205,120]
[392459943,1761502308457,-1000.0,0.00545205,120]
[392459944,1761502308471,-1000.0,0.00545205,120]
[392459945,1761502308480,-1000.0,0.00545205,120]
[392459946,1761502308489,-1000.0,0.00545205,120]
[392459947,1761502308498,-1000.0,0.00545205,120]
[392459948,1761502308509,-1000.0,0.00545205,120]
[392459949,1761502308518,-211.73099122,0.00545205,120]
[392459950,1761502308527,-500.0,0.00547945,120]
[392459951,1761502308537,-512.13991255,0.00547945,120]
[392459952,1761502308546,-500.0,0.00547945,120]
[392459953,1761502308558,-500.0,0.00547945,120]
[392459954,1761502308567,-500.0,0.00547945,120]
[392459955,1761502308578,-500.0,0.00547945,120]
[392459956,1761502308587,-500.0,0.00547945,120]
[392459957,1761502308596,-500.0,0.00547945,120]
[392459958,1761502308762,-289.77882419,0.00547945,120]
[392459959,1761502308773,-152.0,0.00549158,5]
[392459960,1761502308782,-2000.0,0.0055,120]
[392459961,1761502308791,-2000.0,0.0055,120]
[392459962,1761502308800,-2000.0,0.0055,120]
[392459963,1761502308809,-2000.0,0.0055,120]
[392459964,1761502308819,-2000.0,0.0055,120]
[392459965,1761502308828,-5471.51503345,0.0055,120]
[392459966,1761502308837,-5000.54321234,0.0055,120]
[392459967,1761502308847,-10000.0,0.0055,120]
[392459968,1761502308857,-944.89284431,0.0055,120]
[392459969,1761502308866,-944.89284431,0.00555556,120]
[392459970,1761502308876,-2000.0,0.0056,120]
[392459971,1761502308885,-44576.31,0.0056,120]
[392459972,1761502308895,-10000.0,0.0056,120]
[392459973,1761502308904,-944.89284431,0.00561111,120]
[392459974,1761502308913,-944.89284431,0.00566667,120]
[392459975,1761502308922,-2000.0,0.0056893,120]
[392459976,1761502308932,-41090.80340268,0.0057,120]
[392459977,1761502308941,-10000.0,0.0057,120]
[392459978,1761502308950,-944.89284431,0.00572222,120]
[392459979,1761502308959,-324.765,0.00573325,120]
[392459980,1761502308968,-324.766,0.00573325,120]
[392459981,1761502308977,-324.765,0.00573325,120]
[392459982,1761502308986,-324.765,0.00573325,120]
[392459983,1761502308995,-324.765,0.00573325,120]
[392459984,1761502309005,-2000.0,0.005763,90]
[392459985,1761502309014,-944.89284431,0.00577778,120]
[392459986,1761502309023,-13625.439999,0.005788,120]
[392459987,1761502309032,-2000.0,0.0058,120]
[392459988,1761502309042,-1090.64,0.00581918,30]
[392459989,1761502309051,-328.76516989,0.00582193,120]
[392459990,1761502309060,-944.89284431,0.00583333,120]
[392459991,1761502309069,-1500.0,0.005849,120]
[392459992,1761502309078,-2000.0,0.005863,63]
[392459993,1761502309087,-250.0,0.00588,120]
[392459994,1761502309097,-9983.99199997,0.00588,120]
[392459995,1761502309106,-944.89284431,0.00588889,120]
[392459996,1761502309115,-592.95952125,0.0059,120]
[392459997,1761502309125,-3000.0,0.0059,60]
[392459998,1761502309134,-434.47169242,0.0059,120]
[392459999,1761502309143,-5000.0,0.0059,60]
[392460000,1761502309152,-20656.93575498,0.0059,30]
[392460001,1761502309162,-929.57225198,0.0059,120]
[392460002,1761502309171,-86186.9420391,0.00593356,120]
[392460003,1761502309181,-152.0,0.00593631,6]
[392460004,1761502309191,-944.89284431,0.00594444,120]
[392460005,1761502309200,-137346.23246,0.00595518,120]
[392460006,1761502309209,-3381.24141114,0.0059601,84]
[392460007,1761502309219,-49998.0,0.0059898,120]
[392460008,1761502309228,-157546.30399331,0.00598987,120]
[392460009,1761502309237,-1403.21686839,0.00599999,120]
[392460010,1761502309247,-1000.0,0.00599999,120]
[392460011,1761502309256,-2000.0,0.006,120]
[392460012,1761502309265,-10000.0,0.006,90]
[392460013,1761502309274,-7480.05201006,0.006,120]
[392460014,1761502309284,-900.0,0.006,120]
[392460015,1761502309293,-1000.0,0.006,2]
[392460016,1761502309302,-944.89284431,0.006,120]
[392460017,1761502309311,-3000.0,0.006,120]
[392460018,1761502309321,-208653.86285947,0.006,120]
[392460019,1761502309330,-11466.42505177,0.006,120]
[392460020,1761502309339,-500.0,0.006,120]
[392460021,1761502309347,-2000.0,0.006,120]
[392460022,1761502309357,-944.89284431,0.00605556,120]
[392460023,1761502309366,-944.89284431,0.00611111,120]
[392460024,1761502309375,-150.0,0.00616434,120]
[392460025,1761502309384,-944.89284431,0.00616667,120]
[392460026,1761502309393,-10000.0,0.0062,120]
[392460027,1761502309402,-10000.0,0.0062,120]
[392460028,1761502309411,-2000.0,0.0062,120]
[392460029,1761502309420,-944.89284431,0.00622222,120]
[392460030,1761502309429,-159.0,0.006253,120]
[392460031,1761502309437,-944.89284431,0.00627778,120]
[392460032,1761502309447,-157.22002088,0.00629999,120]
[392460033,1761502309456,-944.89284431,0.00633333,120]
[392460034,1761502309469,-152.0,0.00638105,7]
[392460035,1761502309478,-944.89284431,0.00638889,120]
[392460036,1761502309487,-2000.0,0.0064,120]
[392460037,1761502309497,-1022.83962878,0.0064,120]
[392460038,1761502309506,-944.89284431,0.00644444,120]
[392460039,1761502309515,-1044.75076271,0.00648,30]
[392460040,1761502309524,-2867.06930279,0.00648,110]
[392460041,1761502309533,-10004.35898697,0.00648,120]
[392460042,1761502309544,-944.89284431,0.0065,120]
[392460043,1761502309552,-159.0,0.0065,30]
[392460044,1761502309561,-2000.0,0.0065,120]
[392460045,1761502309570,-2000.0,0.0065,120]
[392460046,1761502309579,-2000.0,0.0065,120]
[392460047,1761502309588,-2000.0,0.0065,120]
[392460048,1761502309597,-2000.0,0.0065,120]
[392460049,1761502309607,-2000.0,0.0065,120]
[392460050,1761502309616,-826.83626889,0.0065,60]
[392460051,1761502309626,-11006.01935816,0.0065,120]
[392460052,1761502309635,-944.89284431,0.00655556,120]
[392460053,1761502309644,-2000.0,0.0066,120]
[392460054,1761502309653,-944.89284431,0.00661111,120]
[392460055,1761502309662,-200.0,0.00665,120]
[392460056,1761502309671,-200.0,0.00665,120]
[392460057,1761502309680,-200.0,0.00665,120]
[392460058,1761502309689,-200.0,0.00665,120]
[392460059,1761502309698,-200.0,0.00665,120]
[392460060,1761502309707,-200.0,0.00665,120]
[392460061,1761502309716,-200.0,0.00665,120]
[392460062,1761502309725,-200.0,0.00665,120]
[392460063,1761502309734,-200.0,0.00665,120]
[392460064,1761502309743,-200.0,0.00665,120]
[392460065,1761502309752,-200.0,0.00665,120]
[392460066,1761502309761,-200.0,0.00665,120]
[392460067,1761502309771,-200.0,0.00665,120]
[392460068,1761502309780,-200.0,0.00665,120]
[392460069,1761502309790,-200.0,0.00665,120]
[392460070,1761502309799,-200.0,0.00665,120]
[392460071,1761502309809,-200.0,0.00665,120]
[392460072,1761502309818,-200.0,0.00665,120]
[392460073,1761502309828,-200.0,0.00665,120]
[392460074,1761502309837,-200.0,0.00665,120]
[392460075,1761502309846,-200.0,0.00665,120]
[392460076,1761502309856,-200.0,0.00665,120]
[392460077,1761502309865,-200.0,0.00665,120]
[392460078,1761502309874,-200.0,0.00665,120]
[392460079,1761502309883,-200.0,0.00665,120]
[392460080,1761502309893,-200.0,0.00665,120]
[392460081,1761502309902,-200.0,0.00665,120]
[392460082,1761502309912,-200.0,0.00665,120]
[392460083,1761502309921,-200.0,0.00665,120]
[392460084,1761502309930,-204.0,0.00665,120]
[392460085,1761502309939,-200.0,0.00665,120]
[392460086,1761502309949,-200.0,0.00665,120]
[392460087,1761502309959,-200.0,0.00665,120]
[392460088,1761502309968,-200.0,0.00665,120]
[392460089,1761502309977,-200.0,0.00665,120]
[392460090,1761502309986,-257.0,0.00665,120]
[392460091,1761502309995,-500.0,0.00665,120]
[392460092,1761502310004,-500.0,0.00665,120]
[392460093,1761502310013,-500.0,0.00665,120]
[392460094,1761502310022,-500.0,0.00665,120]
[392460095,1761502310031,-500.0,0.00665,120]
[392460096,1761502310040,-500.0,0.00665,120]
[392460097,1761502310049,-500.0,0.00665,120]
[392460098,1761502310057,-500.0,0.00665,120]
[392460099,1761502310067,-192.0,0.00665,120]
[392460100,1761502310076,-4000.0,0.006666,120]
[392460101,1761502310085,-230499.93167421,0.006666,120]
[392460102,1761502310094,-944.89284431,0.00666667,120]
[392460103,1761502310104,-1905879.41729553,0.0067,120]
[392460104,1761502310250,-299.69833443,0.0067,120]
[392460105,1761502310415,-91.08934978,0.00033338,2]
[392460106,1761502310428,-526.49044978,0.00033338,2]
[392460107,1761502310440,-169.33569703,0.00033338,2]
[392460108,1761502310451,-150.0,0.0003551,2]
[392460109,1761502310465,-414.6,0.0003551,2]
[392460110,1761502310474,-164.993465,0.000358,31]
[392460111,1761502310483,-164.993465,0.000358,31]
[392460112,1761502310493,-164.993465,0.0003587,31]
[392460113,1761502310503,-164.993465,0.0003587,31]
[392460114,1761502310512,-164.993465,0.00035879,31]
[392460115,1761502310521,-164.993465,0.0003589,31]
[392460116,1761502310530,-164.993465,0.00035941,31]
[392460117,1761502310539,-146.56004797,0.0067,120]
[392460118,1761502310551,-5362.99576927,0.0067,120]
[392460119,1761502348214,-167.49158763,0.00032,120]
[392460120,1761502393689,1.50841237,0.00032,120]
[392460121,1761502393714,195.88571971,0.00032,120]
[392460122,1761502407853,4935.60586792,0.000315,120]
[392460123,1761502552634,63.55061017,0.00017,2]
[392460128,1761502586998,-186.44938983,0.00017,2]
[392460129,1761502587020,-8.55061017,0.0001785,2]
[392460130,1761502589040,-151.81038197,0.0001785,2]
[392460131,1761502590546,-250.0,0.0001785,2]
[392460132,1761502592046,-212.95087992,0.0001785,2]
[392460133,1761502597814,-199.6131195,0.0001785,2]
[392460134,1761502602877,-255.14876501,0.0001785,2]
[392460135,1761502606701,-227.53615744,0.0001785,2]
[392460136,1761502705371,-313.62997841,0.00017761,2]
[392460140,1761502826643,1455.09591,0.0003,120]
[392460142,1761502909803,236.53,0.00013699,2]
[392460143,1761502975278,-465.9948249,0.00017694,2]
[392460144,1761502978509,-227.20057209,0.00017694,2]
[392460145,1761503034691,-264.46865671,0.00017619,2]
[392460146,1761503108161,1017.60880423,0.00015,2]
[392460147,1761503108186,15000.0,0.00015,2]
[392460148,1761503108209,15000.0,0.00015,2]
[392460149,1761503108232,15000.0,0.00015,2]
[392460150,1761503108256,15000.0,0.00015,2]
[392460151,1761503108277,15000.0,0.00015,2]
[392460152,1761503108299,15000.0,0.00015,2]
[392460153,1761503108321,15000.0,0.00015,2]
[392460154,1761503108343,15000.0,0.00015,2]
[392460155,1761503108364,15000.0,0.00015,2]
[392460156,1761503108390,15000.0,0.00015,2]
[392460157,1761503108414,15000.0,0.00015,2]
[392460158,1761503108435,15000.0,0.00015,2]
[392460159,1761503108456,15000.0,0.00015,2]
[392460160,1761503108478,15000.0,0.00015,2]
[392460161,1761503108499,15000.0,0.00015,2]
[392460162,1761503108520,15000.0,0.00015,2]
[392460163,1761503108543,15000.0,0.00015,2]
[392460164,1761503108565,15000.0,0.00015,2]
[392460165,1761503108587,15000.0,0.00015,2]
[392460166,1761503108611,15000.0,0.00015,2]
[392460167,1761503108633,15000.0,0.00015,2]
[392460168,1761503108654,15000.0,0.00015,2]
[392460169,1761503108676,15000.0,0.00015,2]
[392460170,1761503108698,15000.0,0.00015,2]
[392460171,1761503108720,15000.0,0.00015,2]
[392460172,1761503108743,15000.0,0.00015,2]
[392460173,1761503108764,15000.0,0.00015,2]
[392460174,1761503108786,15000.0,0.00015,2]
[392460175,1761503108808,15000.0,0.00015,2]
[392460176,1761503108831,15000.0,0.00015,2]
[392460177,1761503108852,15000.0,0.00015,2]
[392460178,1761503108873,15000.0,0.00015,2]
[392460179,1761503108895,15000.0,0.00015,2]
[392460180,1761503108919,15000.0,0.00015,2]
[392460181,1761503108945,15000.0,0.00015,2]
[392460182,1761503108970,15000.0,0.00015,2]
[392460183,1761503108993,15000.0,0.00015,2]
[392460184,1761503109016,15000.0,0.00015,2]
[392460185,1761503109039,15000.0,0.00015,2]
[392460186,1761503109062,15000.0,0.00015,2]
[392460187,1761503109084,15000.0,0.00015,2]
[392460188,1761503109108,15000.0,0.00015,2]
[392460189,1761503109130,15000.0,0.00015,2]
[392460190,1761503109153,15000.0,0.00015,2]
[392460191,1761503109177,15000.0,0.00015,2]
[392460192,1761503109201,15000.0,0.00015,2]
[392460193,1761503109224,15000.0,0.00015,2]
[392460194,1761503109247,15000.0,0.00015,2]
[392460195,1761503109272,15000.0,0.00015,2]
[392460196,1761503109294,15000.0,0.00015,2]
[392460197,1761503109318,15000.0,0.00015,2]
[392460198,1761503109347,999204.2909277,0.00015,2]
[392460199,1761503109379,1088420.7613967,0.00015,2]
[392460200,1761503109419,865.39436267,0.00038907,90]
[392460201,1761503132169,1696.16758706,0.0002,120]
[392460202,1761503155219,-192.694279,0.00017487,2]
[392460203,1761503155243,-195.0,0.00017575,2]
[392460204,1761503155262,-166.54630403,0.00017619,2]
[392460205,1761503163692,467.76388163,8e-05,2]
[392460207,1761503230594,1223.68097949,0.0002301,120]
[392460208,1761503237118,-78.33784068,0.00017619,2]
[392460209,1761503237140,-134.09293975,0.00017669,2]
[392460210,1761503248908,3343.58954341,0.00038907,120]
[392460211,1761503252102,-1493.59086007,0.00017669,2]
[392460212,1761503253892,185.44321099,0.00016,2]
[392460214,1761503268274,770.75992937,0.00027,120]
[392460216,1761503278927,910926.03151068,0.00015,2]
[392460217,1761503278956,1020000.0,0.00015,2]
[392460218,1761503278985,50000.0,0.00015,2]
[392460219,1761503279016,2156873.90309362,0.00015,2]
[392460221,1761503286586,1060.77450744,0.00038908,120]
[392460222,1761503289190,578.03,0.0002,14]
[392460223,1761503289890,-249.45455634,0.00017669,2]
[392460224,1761503292335,-345.51323716,0.00017669,2]
[392460225,1761503293173,3620.74902087,0.0001439,2]
[392460233,1761503296205,-186.18131164,0.00017669,2]
[392460234,1761503307208,2049.16641878,0.00015,2]
[392460235,1761503311034,687.69311943,0.00025,120]
[392460236,1761503311141,3232.76870287,0.00038908,60]
[392460237,1761503311964,722.23999303,0.00027,120]
[392460238,1761503314567,739.62937728,0.000246,120]
[392460239,1761503316500,903.13855534,0.000199,120]
[392460242,1761503322471,445.50281659,0.00022,120]
[392460243,1761503326000,644.10706418,0.0003,120]